[Event "Titled Tuesday Blitz June 8 2021"]
[White "Zierk, Steven"]
[Black "Sadovsky, Artem"]
[WhiteFideId "2034255"]
[BlackFideId "4155840"]
[WhiteElo "2502"]
[BlackElo "2442"]
[Result "1-0"]
[Round "05"]
[TimeControl "180+1"]
[Date "2021.06.08"]
[WhiteClock "0:01:46"]
[BlackClock "0:00:27"]

1. e4 {[%clk 0:03:00]}  g6 {[%clk 0:02:59]} 2. d4 {[%clk 0:03:00]}  Bg7 {[%clk 0:02:59]} 3. Nc3 {[%clk 0:03:01]}  c6 {[%clk 0:02:59]} 4. Nf3 {[%clk 0:03:01]}  d5 {[%clk 0:02:59]} 5. h3 {[%clk 0:03:01]}  dxe4 {[%clk 0:02:59]} 6. Nxe4 {[%clk 0:03:02]}  Nf6 {[%clk 0:02:59]} 7. Nxf6+ {[%clk 0:03:01]}  exf6 {[%clk 0:03:00]} 8. Be3 {[%clk 0:02:59]}  O-O {[%clk 0:03:00]} 9. Bc4 {[%clk 0:02:57]}  Re8 {[%clk 0:03:00]} 10. O-O {[%clk 0:02:57]}  Be6 {[%clk 0:03:01]} 11. Bxe6 {[%clk 0:02:54]}  fxe6 {[%clk 0:02:55]} 12. c4 {[%clk 0:02:51]}  Nd7 {[%clk 0:02:45]} 13. Bf4 {[%clk 0:02:50]}  Nb6 {[%clk 0:02:43]} 14. b3 {[%clk 0:02:46]}  Kf7 {[%clk 0:02:38]} 15. Qc2 {[%clk 0:02:38]}  a5 {[%clk 0:02:19]} 16. a4 {[%clk 0:02:36]}  Bf8 {[%clk 0:01:55]} 17. Rfe1 {[%clk 0:02:32]}  Bb4 {[%clk 0:01:56]} 18. Re4 {[%clk 0:02:29]}  Qd7 {[%clk 0:01:50]} 19. Bd2 {[%clk 0:02:25]}  Bxd2 {[%clk 0:01:42]} 20. Qxd2 {[%clk 0:02:26]}  Kg7 {[%clk 0:01:43]} 21. Rae1 {[%clk 0:02:25]}  Re7 {[%clk 0:01:39]} 22. R1e2 {[%clk 0:02:24]}  Nc8 {[%clk 0:01:30]} 23. Qe1 {[%clk 0:02:22]}  Kf7 {[%clk 0:01:30]} 24. Rf4 {[%clk 0:02:02]}  Kg7 {[%clk 0:01:30]} 25. g4 {[%clk 0:02:00]}  g5 {[%clk 0:01:14]} 26. Rfe4 {[%clk 0:02:00]}  Kf7 {[%clk 0:01:04]} 27. Re5 {[%clk 0:01:57]}  b6 {[%clk 0:00:45]} 28. Rxg5 {[%clk 0:01:56]}  Qd6 {[%clk 0:00:36]} 29. Rh5 {[%clk 0:01:53]}  Qf4 {[%clk 0:00:37]} 30. Rxh7+ {[%clk 0:01:49]}  Kg8 {[%clk 0:00:27]} 31. Rxe7 {[%clk 0:01:46]}  Nxe7 {[%clk 0:00:28]} 32. Rxe6 {[%clk 0:01:46]}  Qxf3 {[%clk 0:00:27]} 33. Rxe7 {[%clk 0:01:46]} 1-0


[Site "https://www.chess.com"]

[Event "Titled Tuesday Blitz June 8 2021"]
[White "Zubov, Alexander"]
[Black "Ibrahimli, Murad"]
[WhiteFideId "14109409"]
[BlackFideId "13410229"]
[WhiteElo "2740"]
[BlackElo "2109"]
[Result "0-1"]
[Round "05"]
[TimeControl "180+1"]
[Date "2021.06.08"]
[WhiteClock "0:00:01"]
[BlackClock "0:00:02"]

1. d4 {[%clk 0:03:00]}  Nf6 {[%clk 0:02:59]} 2. c4 {[%clk 0:03:00]}  g6 {[%clk 0:02:59]} 3. Nc3 {[%clk 0:03:00]}  d5 {[%clk 0:03:00]} 4. e3 {[%clk 0:03:00]}  Bg7 {[%clk 0:02:59]} 5. Qb3 {[%clk 0:03:00]}  e6 {[%clk 0:02:54]} 6. Nf3 {[%clk 0:03:00]}  O-O {[%clk 0:02:53]} 7. Be2 {[%clk 0:03:00]}  b6 {[%clk 0:02:54]} 8. cxd5 {[%clk 0:03:00]}  exd5 {[%clk 0:02:53]} 9. Qa3 {[%clk 0:03:00]}  Bb7 {[%clk 0:02:48]} 10. b4 {[%clk 0:02:59]}  c6 {[%clk 0:02:47]} 11. b5 {[%clk 0:02:52]}  c5 {[%clk 0:02:43]} 12. O-O {[%clk 0:02:45]}  Nbd7 {[%clk 0:02:42]} 13. Rd1 {[%clk 0:02:40]}  Qe7 {[%clk 0:02:42]} 14. Bb2 {[%clk 0:02:29]}  Rfe8 {[%clk 0:02:40]} 15. dxc5 {[%clk 0:02:28]}  bxc5 {[%clk 0:02:37]} 16. Rac1 {[%clk 0:02:15]}  Nb6 {[%clk 0:02:26]} 17. Qb3 {[%clk 0:02:05]}  Ng4 {[%clk 0:02:06]} 18. Re1 {[%clk 0:00:51]}  Nxf2 {[%clk 0:01:29]} 19. Kxf2 {[%clk 0:00:49]}  Qxe3+ {[%clk 0:01:30]} 20. Kf1 {[%clk 0:00:49]}  Qf4 {[%clk 0:01:29]} 21. Nd1 {[%clk 0:00:30]}  c4 {[%clk 0:01:17]} 22. Qc2 {[%clk 0:00:24]}  d4 {[%clk 0:01:17]} 23. Bxc4 {[%clk 0:00:17]}  Nxc4 {[%clk 0:00:20]} 24. Qxc4 {[%clk 0:00:16]}  Rxe1+ {[%clk 0:00:20]} 25. Kxe1 {[%clk 0:00:16]}  Bxf3 {[%clk 0:00:20]} 26. gxf3 {[%clk 0:00:15]}  Qxf3 {[%clk 0:00:21]} 27. Nf2 {[%clk 0:00:14]}  d3 {[%clk 0:00:11]} 28. Qxd3 {[%clk 0:00:11]}  Qf4 {[%clk 0:00:11]} 29. Ba3 {[%clk 0:00:05]}  Re8+ {[%clk 0:00:10]} 30. Kf1 {[%clk 0:00:05]}  Bd4 {[%clk 0:00:10]} 31. Rc2 {[%clk 0:00:06]}  Bb6 {[%clk 0:00:08]} 32. Bc5 {[%clk 0:00:05]}  Bc7 {[%clk 0:00:06]} 33. h3 {[%clk 0:00:04]}  Qh2 {[%clk 0:00:05]} 34. Bxa7 {[%clk 0:00:04]}  Bg3 {[%clk 0:00:05]} 35. Re2 {[%clk 0:00:03]}  Rc8 {[%clk 0:00:04]} 36. Rc2 {[%clk 0:00:02]}  Re8 {[%clk 0:00:03]} 37. Qf3 {[%clk 0:00:02]}  Bxf2 {[%clk 0:00:02]} 38. Bxf2 {[%clk 0:00:02]}  Qd6 {[%clk 0:00:03]} 39. b6 {[%clk 0:00:01]}  Qd7 {[%clk 0:00:02]} 40. b7 {[%clk 0:00:01]}  Qa4 {[%clk 0:00:02]} 41. Re2 {[%clk 0:00:01]}  Qb5 {[%clk 0:00:02]} 0-1


[Site "https://www.chess.com"]

[Event "Titled Tuesday Blitz June 8 2021"]
[White "Can, Emre"]
[Black "Vignesh, N R"]
[WhiteFideId "6302181"]
[BlackFideId "25012215"]
[WhiteElo "2503"]
[BlackElo "2401"]
[Result "0-1"]
[Round "06"]
[TimeControl "180+1"]
[Date "2021.06.08"]
[WhiteClock "0:01:14"]
[BlackClock "0:00:30"]

1. d4 {[%clk 0:03:00]}  d5 {[%clk 0:02:59]} 2. c4 {[%clk 0:03:01]}  c6 {[%clk 0:02:59]} 3. cxd5 {[%clk 0:03:01]}  cxd5 {[%clk 0:02:58]} 4. Bf4 {[%clk 0:03:01]}  Nc6 {[%clk 0:02:58]} 5. e3 {[%clk 0:03:02]}  Nf6 {[%clk 0:02:58]} 6. Nc3 {[%clk 0:03:02]}  e6 {[%clk 0:02:56]} 7. Rc1 {[%clk 0:02:57]}  Bd6 {[%clk 0:02:55]} 8. Bxd6 {[%clk 0:02:56]}  Qxd6 {[%clk 0:02:55]} 9. f4 {[%clk 0:02:56]}  O-O {[%clk 0:02:53]} 10. Bd3 {[%clk 0:02:56]}  Ne8 {[%clk 0:02:41]} 11. Nf3 {[%clk 0:02:52]}  f5 {[%clk 0:02:41]} 12. g4 {[%clk 0:02:43]}  fxg4 {[%clk 0:02:02]} 13. Ne5 {[%clk 0:02:43]}  Nf6 {[%clk 0:02:02]} 14. h3 {[%clk 0:02:31]}  g3 {[%clk 0:01:50]} 15. Rg1 {[%clk 0:02:30]}  Bd7 {[%clk 0:01:26]} 16. Rxg3 {[%clk 0:02:30]}  Be8 {[%clk 0:01:26]} 17. a3 {[%clk 0:02:20]}  Qe7 {[%clk 0:01:25]} 18. Rc2 {[%clk 0:02:16]}  Nh5 {[%clk 0:01:18]} 19. Rg4 {[%clk 0:02:14]}  Nxe5 {[%clk 0:01:10]} 20. dxe5 {[%clk 0:02:13]}  d4 {[%clk 0:01:09]} 21. exd4 {[%clk 0:02:00]}  Nxf4 {[%clk 0:01:03]} 22. Rf2 {[%clk 0:01:48]}  Bh5 {[%clk 0:00:55]} 23. Be4 {[%clk 0:01:32]}  Rad8 {[%clk 0:00:44]} 24. Qc2 {[%clk 0:01:26]}  Bxg4 {[%clk 0:00:36]} 25. Bxh7+ {[%clk 0:01:25]}  Kh8 {[%clk 0:00:35]} 26. hxg4 {[%clk 0:01:25]}  Qh4 {[%clk 0:00:35]} 27. Be4 {[%clk 0:01:22]}  Nh3 {[%clk 0:00:32]} 28. Nd1 {[%clk 0:01:13]}  Nxf2 {[%clk 0:00:31]} 29. Nxf2 {[%clk 0:01:14]}  Rxd4 {[%clk 0:00:30]} 0-1


[Site "https://www.chess.com"]

[Event "Titled Tuesday Blitz June 8 2021"]
[White "Chasin, Nico"]
[Black "Cunjalo, Faris"]
[WhiteFideId "30908477"]
[BlackFideId "14410710"]
[WhiteElo "2135"]
[BlackElo "2234"]
[Result "1/2-1/2"]
[Round "06"]
[TimeControl "180+1"]
[Date "2021.06.08"]
[WhiteClock "0:00:22"]
[BlackClock "0:00:16"]

1. d4 {[%clk 0:03:00]}  Nf6 {[%clk 0:02:53]} 2. c4 {[%clk 0:03:01]}  e6 {[%clk 0:02:54]} 3. Nc3 {[%clk 0:02:59]}  Bb4 {[%clk 0:02:53]} 4. Qc2 {[%clk 0:03:00]}  d5 {[%clk 0:02:53]} 5. cxd5 {[%clk 0:02:53]}  exd5 {[%clk 0:02:53]} 6. Bg5 {[%clk 0:02:53]}  h6 {[%clk 0:02:53]} 7. Bh4 {[%clk 0:02:53]}  c5 {[%clk 0:02:50]} 8. e3 {[%clk 0:02:47]}  cxd4 {[%clk 0:02:44]} 9. exd4 {[%clk 0:02:46]}  O-O {[%clk 0:02:38]} 10. Nf3 {[%clk 0:02:46]}  Nc6 {[%clk 0:02:34]} 11. Be2 {[%clk 0:02:45]}  Bg4 {[%clk 0:02:34]} 12. Rd1 {[%clk 0:02:41]}  Bxf3 {[%clk 0:02:19]} 13. Bxf3 {[%clk 0:02:40]}  Re8+ {[%clk 0:02:16]} 14. Be2 {[%clk 0:02:37]}  Re4 {[%clk 0:02:12]} 15. Bxf6 {[%clk 0:02:19]}  Qxf6 {[%clk 0:02:08]} 16. O-O {[%clk 0:02:17]}  Rxd4 {[%clk 0:01:56]} 17. Nxd5 {[%clk 0:02:17]}  Qd6 {[%clk 0:01:48]} 18. Nxb4 {[%clk 0:02:14]}  Nxb4 {[%clk 0:01:48]} 19. Qc3 {[%clk 0:02:12]}  Rd8 {[%clk 0:01:47]} 20. Rxd4 {[%clk 0:02:03]}  Qxd4 {[%clk 0:01:47]} 21. Qb3 {[%clk 0:02:03]}  Qb6 {[%clk 0:01:18]} 22. Bc4 {[%clk 0:01:47]}  Rd7 {[%clk 0:01:08]} 23. Re1 {[%clk 0:01:36]}  Kf8 {[%clk 0:01:06]} 24. h4 {[%clk 0:01:17]}  Nc6 {[%clk 0:01:04]} 25. Qxb6 {[%clk 0:01:13]}  axb6 {[%clk 0:01:05]} 26. Re2 {[%clk 0:01:13]}  Rd4 {[%clk 0:01:03]} 27. Bb5 {[%clk 0:00:56]}  Rxh4 {[%clk 0:01:03]} 28. Rc2 {[%clk 0:00:56]}  Rb4 {[%clk 0:00:21]} 29. Bxc6 {[%clk 0:00:45]}  bxc6 {[%clk 0:00:22]} 30. Rxc6 {[%clk 0:00:45]}  Rxb2 {[%clk 0:00:22]} 31. a4 {[%clk 0:00:42]}  h5 {[%clk 0:00:19]} 32. Rc7 {[%clk 0:00:40]}  g5 {[%clk 0:00:15]} 33. Rb7 {[%clk 0:00:36]}  Rb4 {[%clk 0:00:14]} 34. Ra7 {[%clk 0:00:32]}  Rb1+ {[%clk 0:00:11]} 35. Kh2 {[%clk 0:00:32]}  Rb2 {[%clk 0:00:12]} 36. Kg3 {[%clk 0:00:26]}  Rb3+ {[%clk 0:00:11]} 37. Kh2 {[%clk 0:00:26]}  Kg7 {[%clk 0:00:10]} 38. g3 {[%clk 0:00:25]}  Rb2 {[%clk 0:00:09]} 39. Kg2 {[%clk 0:00:26]}  Kg6 {[%clk 0:00:10]} 40. Ra6 {[%clk 0:00:25]}  f6 {[%clk 0:00:10]} 41. a5 {[%clk 0:00:24]}  bxa5 {[%clk 0:00:08]} 42. Rxa5 {[%clk 0:00:25]}  Rb4 {[%clk 0:00:07]} 43. Rc5 {[%clk 0:00:25]}  Rd4 {[%clk 0:00:08]} 44. Rb5 {[%clk 0:00:25]}  Rd6 {[%clk 0:00:08]} 45. Rc5 {[%clk 0:00:25]}  Re6 {[%clk 0:00:09]} 46. Rb5 {[%clk 0:00:26]}  Re5 {[%clk 0:00:10]} 47. Rb8 {[%clk 0:00:25]}  Kf5 {[%clk 0:00:10]} 48. Rh8 {[%clk 0:00:26]}  Kg6 {[%clk 0:00:11]} 49. Rg8+ {[%clk 0:00:26]}  Kh7 {[%clk 0:00:12]} 50. Rb8 {[%clk 0:00:25]}  Kg7 {[%clk 0:00:13]} 51. Rb7+ {[%clk 0:00:26]}  Kg6 {[%clk 0:00:13]} 52. Rb8 {[%clk 0:00:26]}  Rd5 {[%clk 0:00:14]} 53. Rg8+ {[%clk 0:00:24]}  Kh7 {[%clk 0:00:15]} 54. Rf8 {[%clk 0:00:23]}  Kg7 {[%clk 0:00:16]} 55. Rb8 {[%clk 0:00:24]}  Rd4 {[%clk 0:00:16]} 56. Rb7+ {[%clk 0:00:24]}  Kg6 {[%clk 0:00:17]} 57. Rb8 {[%clk 0:00:24]}  h4 {[%clk 0:00:17]} 58. Rg8+ {[%clk 0:00:22]}  Kf5 {[%clk 0:00:17]} 59. Rh8 {[%clk 0:00:22]}  hxg3 {[%clk 0:00:15]} 60. Kxg3 {[%clk 0:00:23]}  Rd3+ {[%clk 0:00:15]} 61. Kg2 {[%clk 0:00:23]}  Kg4 {[%clk 0:00:15]} 62. Rc8 {[%clk 0:00:20]}  f5 {[%clk 0:00:15]} 63. Rc4+ {[%clk 0:00:21]}  f4 {[%clk 0:00:16]} 64. Ra4 {[%clk 0:00:21]}  Rb3 {[%clk 0:00:16]} 65. Rc4 {[%clk 0:00:21]}  Rd3 {[%clk 0:00:16]} 66. Ra4 {[%clk 0:00:22]}  Kh4 {[%clk 0:00:17]} 67. Rc4 {[%clk 0:00:22]}  Rb3 {[%clk 0:00:17]} 68. Ra4 {[%clk 0:00:22]}  Rd3 {[%clk 0:00:16]} 69. Rc4 {[%clk 0:00:22]}  Kg4 {[%clk 0:00:16]} 1/2-1/2


[Site "https://www.chess.com"]

[Event "Titled Tuesday Blitz June 8 2021"]
[White "Drygalov, Sergey"]
[Black "Abdusattorov, Nodirbek"]
[WhiteFideId "24171743"]
[BlackFideId "14204118"]
[WhiteElo "2514"]
[BlackElo "2662"]
[Result "1/2-1/2"]
[Round "06"]
[TimeControl "180+1"]
[Date "2021.06.08"]
[WhiteClock "0:00:04"]
[BlackClock "0:00:07"]

1. d4 {[%clk 0:03:00]}  Nf6 {[%clk 0:02:59]} 2. c4 {[%clk 0:03:01]}  e6 {[%clk 0:02:59]} 3. Nf3 {[%clk 0:03:01]}  d5 {[%clk 0:03:00]} 4. Nc3 {[%clk 0:03:01]}  c5 {[%clk 0:03:00]} 5. cxd5 {[%clk 0:03:01]}  Nxd5 {[%clk 0:03:01]} 6. e4 {[%clk 0:03:01]}  Nxc3 {[%clk 0:03:01]} 7. bxc3 {[%clk 0:03:01]}  cxd4 {[%clk 0:03:02]} 8. cxd4 {[%clk 0:03:02]}  Bb4+ {[%clk 0:03:03]} 9. Bd2 {[%clk 0:03:02]}  Bxd2+ {[%clk 0:03:04]} 10. Qxd2 {[%clk 0:03:03]}  O-O {[%clk 0:03:05]} 11. Bc4 {[%clk 0:03:02]}  Nd7 {[%clk 0:03:05]} 12. O-O {[%clk 0:03:02]}  b6 {[%clk 0:03:05]} 13. Rfe1 {[%clk 0:03:01]}  Bb7 {[%clk 0:03:05]} 14. Rad1 {[%clk 0:03:02]}  Rc8 {[%clk 0:03:06]} 15. Bb3 {[%clk 0:03:02]}  h6 {[%clk 0:03:06]} 16. h3 {[%clk 0:03:02]}  Nf6 {[%clk 0:03:05]} 17. Qf4 {[%clk 0:03:02]}  Qc7 {[%clk 0:03:06]} 18. Qh4 {[%clk 0:02:58]}  b5 {[%clk 0:03:06]} 19. d5 {[%clk 0:02:35]}  exd5 {[%clk 0:03:06]} 20. e5 {[%clk 0:02:34]}  Ne4 {[%clk 0:03:06]} 21. Bxd5 {[%clk 0:02:31]}  Nc3 {[%clk 0:02:58]} 22. Bxb7 {[%clk 0:02:31]}  Qxb7 {[%clk 0:02:58]} 23. Rd6 {[%clk 0:02:27]}  Rc4 {[%clk 0:02:30]} 24. Nd4 {[%clk 0:02:16]}  Re8 {[%clk 0:02:24]} 25. Rd8 {[%clk 0:02:06]}  Rc8 {[%clk 0:02:11]} 26. Rxe8+ {[%clk 0:01:57]}  Rxe8 {[%clk 0:02:11]} 27. Nf5 {[%clk 0:01:58]}  Re6 {[%clk 0:01:32]} 28. Re3 {[%clk 0:01:53]}  Nd5 {[%clk 0:01:28]} 29. Rg3 {[%clk 0:01:52]}  Rg6 {[%clk 0:01:28]} 30. Rxg6 {[%clk 0:01:45]}  fxg6 {[%clk 0:01:29]} 31. Nd6 {[%clk 0:01:43]}  Qc7 {[%clk 0:01:24]} 32. Qe4 {[%clk 0:01:33]}  Qc1+ {[%clk 0:01:21]} 33. Kh2 {[%clk 0:01:32]}  Qf4+ {[%clk 0:01:22]} 34. Qxf4 {[%clk 0:01:32]}  Nxf4 {[%clk 0:01:23]} 35. Nxb5 {[%clk 0:01:29]}  a5 {[%clk 0:01:23]} 36. g3 {[%clk 0:01:27]}  Nd3 {[%clk 0:01:23]} 37. f4 {[%clk 0:01:24]}  g5 {[%clk 0:01:23]} 38. fxg5 {[%clk 0:01:18]}  hxg5 {[%clk 0:01:23]} 39. e6 {[%clk 0:01:18]}  Nc1 {[%clk 0:01:08]} 40. a3 {[%clk 0:01:14]}  Nb3 {[%clk 0:01:03]} 41. Kg2 {[%clk 0:01:10]}  Nd2 {[%clk 0:00:57]} 42. Kf2 {[%clk 0:00:45]}  Kf8 {[%clk 0:00:51]} 43. Ke3 {[%clk 0:00:45]}  Nf1+ {[%clk 0:00:51]} 44. Kf3 {[%clk 0:00:45]}  Ke7 {[%clk 0:00:51]} 45. Nd4 {[%clk 0:00:45]}  Kf6 {[%clk 0:00:47]} 46. a4 {[%clk 0:00:32]}  Nd2+ {[%clk 0:00:44]} 47. Ke3 {[%clk 0:00:31]}  Nc4+ {[%clk 0:00:43]} 48. Ke4 {[%clk 0:00:18]}  Nb6 {[%clk 0:00:43]} 49. e7 {[%clk 0:00:14]}  Kxe7 {[%clk 0:00:41]} 50. Kf5 {[%clk 0:00:15]}  Nxa4 {[%clk 0:00:32]} 51. Nc6+ {[%clk 0:00:15]}  Kf7 {[%clk 0:00:33]} 52. Nxa5 {[%clk 0:00:14]}  g4 {[%clk 0:00:32]} 53. Kxg4 {[%clk 0:00:14]}  Kf6 {[%clk 0:00:31]} 54. Nc4 {[%clk 0:00:15]}  Nc5 {[%clk 0:00:30]} 55. Ne3 {[%clk 0:00:15]}  Ne6 {[%clk 0:00:29]} 56. h4 {[%clk 0:00:14]}  g6 {[%clk 0:00:29]} 57. Ng2 {[%clk 0:00:14]}  Ke5 {[%clk 0:00:26]} 58. Kf3 {[%clk 0:00:09]}  Nd4+ {[%clk 0:00:26]} 59. Kg4 {[%clk 0:00:09]}  Ne6 {[%clk 0:00:26]} 60. Ne1 {[%clk 0:00:10]}  Kf6 {[%clk 0:00:25]} 61. Nf3 {[%clk 0:00:10]}  Ng7 {[%clk 0:00:22]} 62. Ng5 {[%clk 0:00:11]}  Nh5 {[%clk 0:00:20]} 63. Kf3 {[%clk 0:00:11]}  Ke5 {[%clk 0:00:17]} 64. Ne4 {[%clk 0:00:10]}  Ng7 {[%clk 0:00:16]} 65. Nf2 {[%clk 0:00:10]}  Nf5 {[%clk 0:00:15]} 66. Ng4+ {[%clk 0:00:10]}  Ke6 {[%clk 0:00:15]} 67. Kf4 {[%clk 0:00:11]}  Nd4 {[%clk 0:00:15]} 68. Ne3 {[%clk 0:00:09]}  Ne2+ {[%clk 0:00:14]} 69. Kg4 {[%clk 0:00:09]}  Kf6 {[%clk 0:00:14]} 70. Nd5+ {[%clk 0:00:09]}  Ke5 {[%clk 0:00:14]} 71. Ne7 {[%clk 0:00:08]}  Kf6 {[%clk 0:00:14]} 72. Nc6 {[%clk 0:00:08]}  Nc3 {[%clk 0:00:13]} 73. Nd4 {[%clk 0:00:08]}  Nd5 {[%clk 0:00:12]} 74. Ne2 {[%clk 0:00:06]}  Ne3+ {[%clk 0:00:11]} 75. Kf3 {[%clk 0:00:07]}  Nf5 {[%clk 0:00:12]} 76. Kg4 {[%clk 0:00:06]}  Ne3+ {[%clk 0:00:12]} 77. Kf4 {[%clk 0:00:06]}  Nd5+ {[%clk 0:00:11]} 78. Kf3 {[%clk 0:00:06]}  Ke5 {[%clk 0:00:09]} 79. Nf4 {[%clk 0:00:05]}  Nxf4 {[%clk 0:00:08]} 80. gxf4+ {[%clk 0:00:05]}  Kf5 {[%clk 0:00:05]} 81. Kg3 {[%clk 0:00:06]}  Kf6 {[%clk 0:00:06]} 82. Kg4 {[%clk 0:00:06]}  Kf7 {[%clk 0:00:06]} 83. Kf3 {[%clk 0:00:03]}  Kf6 {[%clk 0:00:06]} 84. Kf2 {[%clk 0:00:03]}  Kf5 {[%clk 0:00:06]} 85. Kg3 {[%clk 0:00:03]}  Kf6 {[%clk 0:00:06]} 86. Kg4 {[%clk 0:00:04]}  Kf7 {[%clk 0:00:06]} 87. Kf3 {[%clk 0:00:04]}  Kf6 {[%clk 0:00:06]} 88. Ke4 {[%clk 0:00:05]}  Ke6 {[%clk 0:00:07]} 89. Ke3 {[%clk 0:00:04]}  Kf5 {[%clk 0:00:07]} 90. Kf3 {[%clk 0:00:04]}  Kf6 {[%clk 0:00:07]} 1/2-1/2


[Site "https://www.chess.com"]

[Event "Titled Tuesday Blitz June 8 2021"]
[White "Henderson de La Fuente, Lance"]
[Black "Ivic, Velimir"]
[WhiteFideId "32096585"]
[BlackFideId "950122"]
[WhiteElo "2280"]
[BlackElo "2509"]
[Result "0-1"]
[Round "06"]
[TimeControl "180+1"]
[Date "2021.06.08"]
[WhiteClock "0:00:01"]
[BlackClock "0:00:02"]

1. e4 {[%clk 0:02:59]}  c5 {[%clk 0:02:59]} 2. Nc3 {[%clk 0:02:57]}  Nc6 {[%clk 0:02:59]} 3. Nf3 {[%clk 0:02:56]}  g6 {[%clk 0:02:56]} 4. Bb5 {[%clk 0:02:54]}  Bg7 {[%clk 0:02:57]} 5. Bxc6 {[%clk 0:02:54]}  bxc6 {[%clk 0:02:56]} 6. d3 {[%clk 0:02:51]}  e5 {[%clk 0:02:56]} 7. Be3 {[%clk 0:02:49]}  d6 {[%clk 0:02:55]} 8. a3 {[%clk 0:02:44]}  a5 {[%clk 0:02:51]} 9. Nd2 {[%clk 0:02:35]}  Nf6 {[%clk 0:02:40]} 10. h3 {[%clk 0:02:33]}  O-O {[%clk 0:02:35]} 11. O-O {[%clk 0:02:30]}  Nh5 {[%clk 0:02:25]} 12. Rb1 {[%clk 0:01:50]}  Nf4 {[%clk 0:02:11]} 13. Bxf4 {[%clk 0:01:32]}  exf4 {[%clk 0:02:11]} 14. Nf3 {[%clk 0:01:29]}  Rb8 {[%clk 0:02:06]} 15. d4 {[%clk 0:01:11]}  cxd4 {[%clk 0:02:02]} 16. Nxd4 {[%clk 0:01:12]}  Qb6 {[%clk 0:02:02]} 17. Nf3 {[%clk 0:01:10]}  Ba6 {[%clk 0:01:46]} 18. Re1 {[%clk 0:01:10]}  Qc5 {[%clk 0:01:30]} 19. Qd2 {[%clk 0:00:57]}  Rfd8 {[%clk 0:01:03]} 20. Na4 {[%clk 0:00:48]}  Qb5 {[%clk 0:01:00]} 21. b3 {[%clk 0:00:48]}  d5 {[%clk 0:00:30]} 22. Qxf4 {[%clk 0:00:45]}  dxe4 {[%clk 0:00:28]} 23. Rxe4 {[%clk 0:00:43]}  Qd5 {[%clk 0:00:22]} 24. Rbe1 {[%clk 0:00:37]}  c5 {[%clk 0:00:10]} 25. Ne5 {[%clk 0:00:28]}  Bb7 {[%clk 0:00:06]} 26. c4 {[%clk 0:00:11]}  Qe6 {[%clk 0:00:06]} 27. Nxc5 {[%clk 0:00:10]}  Qe7 {[%clk 0:00:04]} 28. Nxb7 {[%clk 0:00:10]}  Qxb7 {[%clk 0:00:05]} 29. R4e3 {[%clk 0:00:08]}  Re8 {[%clk 0:00:05]} 30. Ng4 {[%clk 0:00:08]}  Rxe3 {[%clk 0:00:04]} 31. Rxe3 {[%clk 0:00:09]}  Rd8 {[%clk 0:00:04]} 32. Kh2 {[%clk 0:00:07]}  h5 {[%clk 0:00:03]} 33. Nf6+ {[%clk 0:00:06]}  Kh8 {[%clk 0:00:04]} 34. Nd5 {[%clk 0:00:06]}  Qd7 {[%clk 0:00:03]} 35. Qe4 {[%clk 0:00:05]}  Qd6+ {[%clk 0:00:03]} 36. g3 {[%clk 0:00:05]}  Qxa3 {[%clk 0:00:03]} 37. Qe7 {[%clk 0:00:04]}  Qxe7 {[%clk 0:00:03]} 38. Rxe7 {[%clk 0:00:05]}  Rb8 {[%clk 0:00:04]} 39. Rxf7 {[%clk 0:00:04]}  Rxb3 {[%clk 0:00:04]} 40. Nf4 {[%clk 0:00:03]}  a4 {[%clk 0:00:04]} 41. Ra7 {[%clk 0:00:02]}  a3 {[%clk 0:00:03]} 42. Nxg6+ {[%clk 0:00:03]}  Kh7 {[%clk 0:00:02]} 43. Nh4 {[%clk 0:00:01]}  Kg8 {[%clk 0:00:02]} 44. Nf5 {[%clk 0:00:01]}  Be5 {[%clk 0:00:02]} 0-1


[Site "https://www.chess.com"]

[Event "Titled Tuesday Blitz June 8 2021"]
[White "Indjic, Aleksandar"]
[Black "Shahaliyev, Ismayil"]
[WhiteFideId "911925"]
[BlackFideId "13406388"]
[WhiteElo "2643"]
[BlackElo "2105"]
[Result "0-1"]
[Round "06"]
[TimeControl "180+1"]
[Date "2021.06.08"]
[WhiteClock "0:00:05"]
[BlackClock "0:00:14"]

1. d4 {[%clk 0:02:54]}  Nf6 {[%clk 0:02:59]} 2. Nf3 {[%clk 0:02:54]}  e6 {[%clk 0:02:56]} 3. Bg5 {[%clk 0:02:54]}  h6 {[%clk 0:02:55]} 4. Bxf6 {[%clk 0:02:52]}  Qxf6 {[%clk 0:02:56]} 5. e4 {[%clk 0:02:53]}  d6 {[%clk 0:02:56]} 6. Nbd2 {[%clk 0:02:47]}  g5 {[%clk 0:02:55]} 7. c3 {[%clk 0:02:47]}  Bg7 {[%clk 0:02:51]} 8. Nc4 {[%clk 0:02:47]}  Qe7 {[%clk 0:02:50]} 9. Bd3 {[%clk 0:02:46]}  b6 {[%clk 0:02:50]} 10. a4 {[%clk 0:02:45]}  a6 {[%clk 0:02:49]} 11. O-O {[%clk 0:02:44]}  Bb7 {[%clk 0:02:49]} 12. Re1 {[%clk 0:02:44]}  Nd7 {[%clk 0:02:49]} 13. b4 {[%clk 0:02:37]}  g4 {[%clk 0:02:46]} 14. Nfd2 {[%clk 0:02:35]}  h5 {[%clk 0:02:47]} 15. Nf1 {[%clk 0:02:35]}  Qg5 {[%clk 0:02:36]} 16. Nfe3 {[%clk 0:02:25]}  O-O-O {[%clk 0:02:29]} 17. Qe2 {[%clk 0:02:25]}  Nb8 {[%clk 0:02:27]} 18. d5 {[%clk 0:02:19]}  Nd7 {[%clk 0:02:02]} 19. Rec1 {[%clk 0:02:13]}  Kb8 {[%clk 0:02:02]} 20. a5 {[%clk 0:01:35]}  b5 {[%clk 0:02:02]} 21. Na3 {[%clk 0:01:36]}  c6 {[%clk 0:01:34]} 22. dxc6 {[%clk 0:01:24]}  Bxc6 {[%clk 0:01:35]} 23. c4 {[%clk 0:01:25]}  Bxa1 {[%clk 0:01:30]} 24. cxb5 {[%clk 0:01:24]}  Bxb5 {[%clk 0:01:22]} 25. Nxb5 {[%clk 0:01:12]}  axb5 {[%clk 0:01:22]} 26. Rxa1 {[%clk 0:01:12]}  Qe5 {[%clk 0:01:03]} 27. Rd1 {[%clk 0:01:08]}  Nf6 {[%clk 0:01:01]} 28. Bxb5 {[%clk 0:00:52]}  Qxe4 {[%clk 0:00:59]} 29. Ba6 {[%clk 0:00:47]}  Ka7 {[%clk 0:00:56]} 30. Bd3 {[%clk 0:00:46]}  Qxb4 {[%clk 0:00:50]} 31. Nc4 {[%clk 0:00:46]}  Nd5 {[%clk 0:00:48]} 32. Rb1 {[%clk 0:00:45]}  Qc5 {[%clk 0:00:38]} 33. Qd2 {[%clk 0:00:45]}  Rb8 {[%clk 0:00:38]} 34. Rc1 {[%clk 0:00:45]}  Qb4 {[%clk 0:00:38]} 35. Qe2 {[%clk 0:00:43]}  Rhc8 {[%clk 0:00:39]} 36. g3 {[%clk 0:00:43]}  Rc5 {[%clk 0:00:37]} 37. Kg2 {[%clk 0:00:38]}  Rbc8 {[%clk 0:00:36]} 38. Rc2 {[%clk 0:00:37]}  Nc3 {[%clk 0:00:35]} 39. Qe3 {[%clk 0:00:37]}  Ka8 {[%clk 0:00:25]} 40. Rxc3 {[%clk 0:00:16]}  Rxc4 {[%clk 0:00:17]} 41. Bxc4 {[%clk 0:00:11]}  Rxc4 {[%clk 0:00:18]} 42. Rb3 {[%clk 0:00:10]}  Qc5 {[%clk 0:00:16]} 43. Qd3 {[%clk 0:00:04]}  Qc6+ {[%clk 0:00:16]} 44. Kf1 {[%clk 0:00:04]}  Rc1+ {[%clk 0:00:16]} 45. Ke2 {[%clk 0:00:05]}  Rc2+ {[%clk 0:00:16]} 46. Kd1 {[%clk 0:00:05]}  Ra2 {[%clk 0:00:14]} 0-1


[Site "https://www.chess.com"]